[Event "Titled Tuesday Blitz April 18 Late 2023"]
[White "Mikhalsky, Vladimir"]
[Black "Larino Nieto, David"]
[WhiteFideId "14144352"]
[BlackFideId "2256444"]
[WhiteElo "2236"]
[BlackElo "2506"]
[Result "0-1"]
[Round "04"]
[TimeControl "180+2"]
[Date "2023.04.18"]
[WhiteClock "0:00:02"]
[BlackClock "0:01:04"]

1. d4 {[%clk 0:02:58]}  e6 {[%clk 0:02:59]} 2. g3 {[%clk 0:02:55]}  h5 {[%clk 0:02:59]} 3. h4 {[%clk 0:02:48]}  Nf6 {[%clk 0:02:57]} 4. Nf3 {[%clk 0:02:47]}  b6 {[%clk 0:02:55]} 5. Bg2 {[%clk 0:02:44]}  Bb7 {[%clk 0:02:55]} 6. O-O {[%clk 0:02:43]}  Be7 {[%clk 0:02:53]} 7. c4 {[%clk 0:02:42]}  d6 {[%clk 0:02:52]} 8. Nc3 {[%clk 0:02:41]}  Ne4 {[%clk 0:02:48]} 9. Qc2 {[%clk 0:02:30]}  Nxc3 {[%clk 0:02:46]} 10. bxc3 {[%clk 0:02:23]}  Nd7 {[%clk 0:02:40]} 11. e4 {[%clk 0:02:20]}  Nf6 {[%clk 0:02:40]} 12. Ng5 {[%clk 0:02:13]}  e5 {[%clk 0:02:39]} 13. a4 {[%clk 0:02:09]}  O-O {[%clk 0:02:25]} 14. a5 {[%clk 0:02:07]}  Ng4 {[%clk 0:02:19]} 15. Qb3 {[%clk 0:01:44]}  Bf6 {[%clk 0:02:11]} 16. Rd1 {[%clk 0:01:29]}  Qe7 {[%clk 0:02:10]} 17. f3 {[%clk 0:01:13]}  Nh6 {[%clk 0:02:00]} 18. Bh3 {[%clk 0:01:04]}  Rfb8 {[%clk 0:01:57]} 19. Qa4 {[%clk 0:00:57]}  exd4 {[%clk 0:01:33]} 20. cxd4 {[%clk 0:00:57]}  c5 {[%clk 0:01:33]} 21. Be3 {[%clk 0:00:47]}  cxd4 {[%clk 0:01:33]} 22. Bxd4 {[%clk 0:00:47]}  Bxg5 {[%clk 0:01:29]} 23. hxg5 {[%clk 0:00:44]}  Qxg5 {[%clk 0:01:30]} 24. Kh2 {[%clk 0:00:25]}  h4 {[%clk 0:01:24]} 25. Bf2 {[%clk 0:00:25]}  hxg3+ {[%clk 0:01:19]} 26. Bxg3 {[%clk 0:00:24]}  Qh5 {[%clk 0:01:19]} 27. Kg2 {[%clk 0:00:18]}  f5 {[%clk 0:01:08]} 28. Bxd6 {[%clk 0:00:02]}  fxe4 {[%clk 0:01:04]} 0-1


[Site "https://www.chess.com"]

[Event "Titled Tuesday Blitz April 18 Late 2023"]
[White "Yeritsyan, Hayk"]
[Black "Mihajlov, Sebastian"]
[WhiteFideId "13307320"]
[BlackFideId "1512110"]
[WhiteElo "2410"]
[BlackElo "2478"]
[Result "0-1"]
[Round "04"]
[TimeControl "180+2"]
[Date "2023.04.18"]
[WhiteClock "0:00:04"]
[BlackClock "0:00:45"]

1. d4 {[%clk 0:02:52]}  d5 {[%clk 0:02:59]} 2. Nf3 {[%clk 0:02:40]}  Nf6 {[%clk 0:02:59]} 3. e3 {[%clk 0:02:39]}  c5 {[%clk 0:02:58]} 4. Bd3 {[%clk 0:02:39]}  Nc6 {[%clk 0:02:56]} 5. c3 {[%clk 0:02:39]}  Bg4 {[%clk 0:02:56]} 6. Nbd2 {[%clk 0:02:39]}  e6 {[%clk 0:02:56]} 7. Qa4 {[%clk 0:02:40]}  Bd6 {[%clk 0:02:49]} 8. Ne5 {[%clk 0:02:39]}  c4 {[%clk 0:02:26]} 9. Nxc6 {[%clk 0:02:32]}  Qd7 {[%clk 0:02:26]} 10. Bc2 {[%clk 0:02:15]}  bxc6 {[%clk 0:02:26]} 11. e4 {[%clk 0:02:15]}  e5 {[%clk 0:02:17]} 12. dxe5 {[%clk 0:02:09]}  Bxe5 {[%clk 0:02:17]} 13. h3 {[%clk 0:01:58]}  Bh5 {[%clk 0:02:16]} 14. exd5 {[%clk 0:01:50]}  cxd5 {[%clk 0:02:17]} 15. Qxd7+ {[%clk 0:01:47]}  Kxd7 {[%clk 0:02:18]} 16. O-O {[%clk 0:01:46]}  Kc7 {[%clk 0:02:06]} 17. Re1 {[%clk 0:01:42]}  Bd6 {[%clk 0:02:02]} 18. b3 {[%clk 0:01:36]}  Rhe8 {[%clk 0:02:00]} 19. Bb2 {[%clk 0:01:19]}  Bf4 {[%clk 0:01:59]} 20. Nf3 {[%clk 0:01:11]}  Bxf3 {[%clk 0:01:55]} 21. gxf3 {[%clk 0:01:12]}  h6 {[%clk 0:01:42]} 22. bxc4 {[%clk 0:01:10]}  dxc4 {[%clk 0:01:43]} 23. Be4 {[%clk 0:00:42]}  Rab8 {[%clk 0:01:41]} 24. Ba3 {[%clk 0:00:41]}  Bd2 {[%clk 0:01:13]} 25. Red1 {[%clk 0:00:35]}  Rbd8 {[%clk 0:01:13]} 26. Bb4 {[%clk 0:00:29]}  Re5 {[%clk 0:01:14]} 27. Rab1 {[%clk 0:00:21]}  a5 {[%clk 0:01:07]} 28. Ba3 {[%clk 0:00:15]}  Nxe4 {[%clk 0:01:05]} 29. fxe4 {[%clk 0:00:14]}  Rd3 {[%clk 0:00:55]} 30. Rb2 {[%clk 0:00:10]}  Bxc3 {[%clk 0:00:54]} 31. Rbb1 {[%clk 0:00:06]}  Rxe4 {[%clk 0:00:43]} 32. Rxd3 {[%clk 0:00:06]}  cxd3 {[%clk 0:00:44]} 33. Rc1 {[%clk 0:00:06]}  Re1+ {[%clk 0:00:45]} 34. Rxe1 {[%clk 0:00:05]}  Bxe1 {[%clk 0:00:46]} 35. Kf1 {[%clk 0:00:06]}  Bc3 {[%clk 0:00:46]} 36. Bc1 {[%clk 0:00:04]}  d2 {[%clk 0:00:45]} 0-1


[Site "https://www.chess.com"]

[Event "Titled Tuesday Blitz April 18 Late 2023"]
[White "Amburgy, Ryan"]
[Black "Szyszylo, Rafal"]
[WhiteFideId "30924820"]
[BlackFideId "1109626"]
[WhiteElo "2134"]
[BlackElo "1951"]
[Result "1-0"]
[Round "04"]
[TimeControl "180+2"]
[Date "2023.04.18"]
[WhiteClock "0:00:19"]
[BlackClock "0:00:02"]

1. d4 {[%clk 0:03:00]}  g6 {[%clk 0:02:56]} 2. e4 {[%clk 0:02:59]}  d6 {[%clk 0:02:56]} 3. c4 {[%clk 0:02:57]}  Nf6 {[%clk 0:02:56]} 4. Nc3 {[%clk 0:02:58]}  Bg7 {[%clk 0:02:55]} 5. Nf3 {[%clk 0:02:58]}  O-O {[%clk 0:02:56]} 6. Be2 {[%clk 0:02:59]}  Na6 {[%clk 0:02:55]} 7. O-O {[%clk 0:02:57]}  e5 {[%clk 0:02:56]} 8. Be3 {[%clk 0:02:57]}  Qe7 {[%clk 0:02:53]} 9. d5 {[%clk 0:02:55]}  Nc5 {[%clk 0:02:50]} 10. Nd2 {[%clk 0:02:48]}  a5 {[%clk 0:02:50]} 11. Rb1 {[%clk 0:02:27]}  Bd7 {[%clk 0:02:26]} 12. b3 {[%clk 0:02:24]}  Ne8 {[%clk 0:02:18]} 13. Bg4 {[%clk 0:02:09]}  f5 {[%clk 0:02:18]} 14. Bh3 {[%clk 0:02:10]}  b6 {[%clk 0:02:05]} 15. Bxc5 {[%clk 0:02:03]}  bxc5 {[%clk 0:02:04]} 16. a3 {[%clk 0:01:59]}  Rb8 {[%clk 0:02:00]} 17. Qc2 {[%clk 0:01:50]}  Bh6 {[%clk 0:01:59]} 18. a4 {[%clk 0:01:15]}  Bxd2 {[%clk 0:01:08]} 19. Qxd2 {[%clk 0:01:16]}  f4 {[%clk 0:01:07]} 20. Bxd7 {[%clk 0:01:15]}  Qxd7 {[%clk 0:01:08]} 21. f3 {[%clk 0:01:09]}  g5 {[%clk 0:01:08]} 22. Nb5 {[%clk 0:01:07]}  Nf6 {[%clk 0:01:08]} 23. Kf2 {[%clk 0:01:06]}  Ra8 {[%clk 0:01:07]} 24. Ke2 {[%clk 0:01:03]}  g4 {[%clk 0:01:07]} 25. Qe1 {[%clk 0:00:57]}  Kh8 {[%clk 0:01:07]} 26. Qh4 {[%clk 0:00:56]}  Qg7 {[%clk 0:01:07]} 27. Rg1 {[%clk 0:00:44]}  Rg8 {[%clk 0:01:05]} 28. h3 {[%clk 0:00:41]}  gxf3+ {[%clk 0:00:49]} 29. gxf3 {[%clk 0:00:41]}  Qf7 {[%clk 0:00:50]} 30. Kf2 {[%clk 0:00:24]}  Nh5 {[%clk 0:00:20]} 31. Nxc7 {[%clk 0:00:25]}  Qxc7 {[%clk 0:00:12]} 32. Qxh5 {[%clk 0:00:25]}  Qe7 {[%clk 0:00:06]} 33. Rg4 {[%clk 0:00:21]}  Rxg4 {[%clk 0:00:05]} 34. hxg4 {[%clk 0:00:22]}  Rb8 {[%clk 0:00:04]} 35. g5 {[%clk 0:00:19]}  Rg8 {[%clk 0:00:03]} 36. Rg1 {[%clk 0:00:18]}  Rg6 {[%clk 0:00:02]} 37. Qg4 {[%clk 0:00:19]} 1-0


[Site "https://www.chess.com"]

[Event "Titled Tuesday Blitz April 18 Late 2023"]
[White "Mihajlovskij"]
[Black "Espinosa, Pedro"]
[BlackFideId "30921066"]
[WhiteElo "2244"]
[BlackElo "2016"]
[Result "1-0"]
[Round "04"]
[TimeControl "180+2"]
[Date "2023.04.18"]
[WhiteClock "0:00:08"]
[BlackClock "0:00:01"]

1. e4 {[%clk 0:03:00]}  c5 {[%clk 0:03:00]} 2. Nf3 {[%clk 0:03:00]}  d6 {[%clk 0:02:59]} 3. d4 {[%clk 0:03:01]}  cxd4 {[%clk 0:03:00]} 4. Qxd4 {[%clk 0:03:01]}  Nf6 {[%clk 0:03:01]} 5. Bg5 {[%clk 0:03:01]}  Nc6 {[%clk 0:03:00]} 6. Bb5 {[%clk 0:03:01]}  Bd7 {[%clk 0:02:56]} 7. Bxc6 {[%clk 0:03:01]}  Bxc6 {[%clk 0:02:57]} 8. Nc3 {[%clk 0:03:01]}  e6 {[%clk 0:02:56]} 9. O-O-O {[%clk 0:03:01]}  Be7 {[%clk 0:02:56]} 10. Rhe1 {[%clk 0:03:01]}  Qc7 {[%clk 0:02:55]} 11. Qd3 {[%clk 0:02:59]}  O-O {[%clk 0:02:53]} 12. Kb1 {[%clk 0:02:57]}  Rfd8 {[%clk 0:02:52]} 13. Nd4 {[%clk 0:02:56]}  Rac8 {[%clk 0:02:48]} 14. f4 {[%clk 0:02:54]}  a6 {[%clk 0:02:26]} 15. f5 {[%clk 0:02:43]}  e5 {[%clk 0:02:20]} 16. Nf3 {[%clk 0:02:27]}  b5 {[%clk 0:02:18]} 17. Bxf6 {[%clk 0:02:23]}  Bxf6 {[%clk 0:02:18]} 18. Rd2 {[%clk 0:02:21]}  Qb6 {[%clk 0:01:40]} 19. g4 {[%clk 0:02:16]}  b4 {[%clk 0:01:39]} 20. Nd5 {[%clk 0:02:16]}  Bxd5 {[%clk 0:01:36]} 21. Qxd5 {[%clk 0:02:05]}  Rc5 {[%clk 0:01:35]} 22. Qb3 {[%clk 0:02:05]}  Be7 {[%clk 0:01:08]} 23. g5 {[%clk 0:02:00]}  Bf8 {[%clk 0:01:07]} 24. g6 {[%clk 0:01:57]}  d5 {[%clk 0:00:53]} 25. gxf7+ {[%clk 0:01:50]}  Kh8 {[%clk 0:00:51]} 26. exd5 {[%clk 0:01:45]}  Qf6 {[%clk 0:00:37]} 27. Rxe5 {[%clk 0:01:23]}  Qxf7 {[%clk 0:00:35]} 28. Qd3 {[%clk 0:01:01]}  a5 {[%clk 0:00:20]} 29. Re6 {[%clk 0:00:53]}  Qb7 {[%clk 0:00:16]} 30. d6 {[%clk 0:00:46]}  Qf7 {[%clk 0:00:14]} 31. Ne5 {[%clk 0:00:23]}  Qh5 {[%clk 0:00:08]} 32. d7 {[%clk 0:00:20]}  a4 {[%clk 0:00:03]} 33. Ng6+ {[%clk 0:00:14]}  hxg6 {[%clk 0:00:03]} 34. Re8 {[%clk 0:00:12]}  Qg5 {[%clk 0:00:01]} 35. Rxf8+ {[%clk 0:00:08]} 1-0


[Site "https://www.chess.com"]

[Event "Titled Tuesday Blitz April 18 Late 2023"]
[White "Leiva, Gianmarco"]
[Black "Osmonbekov, Talaibek"]
[WhiteFideId "3804399"]
[BlackFideId "2017253"]
[WhiteElo "2345"]
[BlackElo "2135"]
[Result "1-0"]
[Round "04"]
[TimeControl "180+2"]
[Date "2023.04.18"]
[WhiteClock "0:00:02"]
[BlackClock "0:00:02"]

1. e4 {[%clk 0:02:47]}  c5 {[%clk 0:02:59]} 2. Nf3 {[%clk 0:02:46]}  d6 {[%clk 0:02:59]} 3. Bb5+ {[%clk 0:02:45]}  Nd7 {[%clk 0:02:59]} 4. a4 {[%clk 0:02:44]}  e5 {[%clk 0:02:55]} 5. O-O {[%clk 0:02:43]}  Nf6 {[%clk 0:02:56]} 6. Re1 {[%clk 0:02:43]}  Be7 {[%clk 0:02:57]} 7. c3 {[%clk 0:02:44]}  O-O {[%clk 0:02:56]} 8. d4 {[%clk 0:02:44]}  Qc7 {[%clk 0:02:40]} 9. dxe5 {[%clk 0:02:36]}  dxe5 {[%clk 0:02:39]} 10. Bg5 {[%clk 0:02:32]}  Rd8 {[%clk 0:02:36]} 11. Nbd2 {[%clk 0:02:32]}  Nf8 {[%clk 0:02:36]} 12. Qc2 {[%clk 0:02:30]}  Ne6 {[%clk 0:02:34]} 13. Bh4 {[%clk 0:02:26]}  Nf4 {[%clk 0:02:25]} 14. Bf1 {[%clk 0:02:21]}  Bg4 {[%clk 0:02:21]} 15. a5 {[%clk 0:02:01]}  a6 {[%clk 0:02:15]} 16. Re3 {[%clk 0:02:00]}  Rd7 {[%clk 0:02:08]} 17. Nc4 {[%clk 0:02:00]}  Bxf3 {[%clk 0:01:33]} 18. Rxf3 {[%clk 0:02:01]}  Rad8 {[%clk 0:01:30]} 19. g3 {[%clk 0:01:45]}  Ng6 {[%clk 0:01:20]} 20. Bg5 {[%clk 0:01:28]}  Ne8 {[%clk 0:00:53]} 21. Be3 {[%clk 0:01:12]}  Qc6 {[%clk 0:00:45]} 22. h4 {[%clk 0:01:00]}  Nf6 {[%clk 0:00:33]} 23. Bh3 {[%clk 0:00:40]}  Rd3 {[%clk 0:00:31]} 24. Bf5 {[%clk 0:00:41]}  Qc7 {[%clk 0:00:22]} 25. Kg2 {[%clk 0:00:20]}  Bf8 {[%clk 0:00:18]} 26. Bg5 {[%clk 0:00:19]}  Rxf3 {[%clk 0:00:17]} 27. Kxf3 {[%clk 0:00:20]}  Be7 {[%clk 0:00:16]} 28. Rd1 {[%clk 0:00:17]}  h6 {[%clk 0:00:15]} 29. Bxf6 {[%clk 0:00:15]}  Bxf6 {[%clk 0:00:15]} 30. Bxg6 {[%clk 0:00:15]}  fxg6 {[%clk 0:00:15]} 31. Qb3 {[%clk 0:00:13]}  Kh7 {[%clk 0:00:13]} 32. Rxd8 {[%clk 0:00:10]}  Qxd8 {[%clk 0:00:12]} 33. Qxb7 {[%clk 0:00:09]}  Qd3+ {[%clk 0:00:12]} 34. Ne3 {[%clk 0:00:10]}  g5 {[%clk 0:00:12]} 35. h5 {[%clk 0:00:08]}  g4+ {[%clk 0:00:09]} 36. Kxg4 {[%clk 0:00:09]}  Bg5 {[%clk 0:00:10]} 37. Qf7 {[%clk 0:00:07]}  Bxe3 {[%clk 0:00:08]} 38. Qf5+ {[%clk 0:00:06]}  Kg8 {[%clk 0:00:08]} 39. fxe3 {[%clk 0:00:03]}  Qxe3 {[%clk 0:00:09]} 40. Qe6+ {[%clk 0:00:03]}  Kh7 {[%clk 0:00:08]} 41. Qf5+ {[%clk 0:00:03]}  Kh8 {[%clk 0:00:08]} 42. Qxe5 {[%clk 0:00:03]}  Qe2+ {[%clk 0:00:08]} 43. Kh3 {[%clk 0:00:02]}  Qf1+ {[%clk 0:00:07]} 44. Kg4 {[%clk 0:00:02]}  Qe2+ {[%clk 0:00:08]} 45. Kf5 {[%clk 0:00:03]}  Qxh5+ {[%clk 0:00:07]} 46. Ke6 {[%clk 0:00:03]}  Qe8+ {[%clk 0:00:07]} 47. Kd5 {[%clk 0:00:04]}  Qb5 {[%clk 0:00:06]} 48. Kd6 {[%clk 0:00:02]}  Qb8+ {[%clk 0:00:05]} 49. Kd5 {[%clk 0:00:02]}  Qb5 {[%clk 0:00:06]} 50. Qd6 {[%clk 0:00:02]}  c4+ {[%clk 0:00:05]} 51. Kd4 {[%clk 0:00:02]}  Qxb2 {[%clk 0:00:04]} 52. Qb4 {[%clk 0:00:02]}  Qd2+ {[%clk 0:00:03]} 53. Kxc4 {[%clk 0:00:02]}  Qe2+ {[%clk 0:00:03]} 54. Kb3 {[%clk 0:00:02]}  Qd1+ {[%clk 0:00:03]} 55. Kc4 {[%clk 0:00:03]}  Qe2+ {[%clk 0:00:03]} 56. Kd5 {[%clk 0:00:03]}  Qh5+ {[%clk 0:00:02]} 57. Kc6 {[%clk 0:00:02]}  Qe8+ {[%clk 0:00:02]} 58. Kb7 {[%clk 0:00:02]} 1-0


[Site "https://www.chess.com"]

[Event "Titled Tuesday Blitz April 18 Late 2023"]
[White "Kleiman, Jake"]
[Black "Cigan, Jason"]
[WhiteFideId "2020041"]
[BlackFideId "2064022"]
[WhiteElo "2619"]
[BlackElo "2000"]
[Result "1-0"]
[Round "04"]
[TimeControl "180+2"]
[Date "2023.04.18"]
[WhiteClock "0:00:20"]
[BlackClock "0:00:21"]

1. e4 {[%clk 0:02:56]}  c5 {[%clk 0:03:00]} 2. c3 {[%clk 0:02:56]}  d5 {[%clk 0:03:00]} 3. exd5 {[%clk 0:02:57]}  Nf6 {[%clk 0:03:00]} 4. d4 {[%clk 0:02:57]}  Nxd5 {[%clk 0:03:00]} 5. Nf3 {[%clk 0:02:54]}  e6 {[%clk 0:02:57]} 6. Bd3 {[%clk 0:02:51]}  cxd4 {[%clk 0:02:57]} 7. Nxd4 {[%clk 0:02:25]}  Be7 {[%clk 0:02:57]} 8. O-O {[%clk 0:02:25]}  O-O {[%clk 0:02:57]} 9. Qf3 {[%clk 0:02:26]}  Nc6 {[%clk 0:02:42]} 10. Nxc6 {[%clk 0:02:25]}  bxc6 {[%clk 0:02:43]} 11. Nd2 {[%clk 0:02:25]}  Bb7 {[%clk 0:02:33]} 12. Nc4 {[%clk 0:02:13]}  Qc7 {[%clk 0:02:29]} 13. Re1 {[%clk 0:02:05]}  Rad8 {[%clk 0:02:27]} 14. Qh3 {[%clk 0:02:03]}  g6 {[%clk 0:02:25]} 15. Bh6 {[%clk 0:02:02]}  Rfe8 {[%clk 0:02:24]} 16. Be4 {[%clk 0:01:35]}  Nf6 {[%clk 0:02:03]} 17. Bc2 {[%clk 0:01:22]}  Rd5 {[%clk 0:01:56]} 18. Qf3 {[%clk 0:01:14]}  Rh5 {[%clk 0:01:53]} 19. Bf4 {[%clk 0:01:14]}  Qc8 {[%clk 0:01:35]} 20. Rad1 {[%clk 0:00:58]}  c5 {[%clk 0:01:35]} 21. Qe2 {[%clk 0:00:59]}  Qc6 {[%clk 0:01:30]} 22. f3 {[%clk 0:00:59]}  Nd5 {[%clk 0:01:23]} 23. Be5 {[%clk 0:00:57]}  Ba6 {[%clk 0:01:21]} 24. Bd3 {[%clk 0:00:55]}  Bh4 {[%clk 0:01:09]} 25. Rf1 {[%clk 0:00:52]}  Bg5 {[%clk 0:01:06]} 26. Bg3 {[%clk 0:00:43]}  Bxc4 {[%clk 0:01:04]} 27. Bxc4 {[%clk 0:00:43]}  Ne3 {[%clk 0:01:04]} 28. Bb5 {[%clk 0:00:42]}  Qc8 {[%clk 0:01:00]} 29. Bxe8 {[%clk 0:00:42]}  Qxe8 {[%clk 0:00:58]} 30. Qa6 {[%clk 0:00:34]}  Nxf1 {[%clk 0:00:52]} 31. Kxf1 {[%clk 0:00:35]}  Be7 {[%clk 0:00:42]} 32. Qb7 {[%clk 0:00:33]}  Kg7 {[%clk 0:00:33]} 33. c4 {[%clk 0:00:31]}  Rf5 {[%clk 0:00:30]} 34. b3 {[%clk 0:00:30]}  Bf6 {[%clk 0:00:29]} 35. Rd7 {[%clk 0:00:29]}  Be5 {[%clk 0:00:26]} 36. Bxe5+ {[%clk 0:00:24]}  Rxe5 {[%clk 0:00:26]} 37. Qxa7 {[%clk 0:00:23]}  Re3 {[%clk 0:00:24]} 38. Kf2 {[%clk 0:00:20]}  Rc3 {[%clk 0:00:23]} 39. Rd2 {[%clk 0:00:20]}  Qe7 {[%clk 0:00:21]} 40. Qxe7 {[%clk 0:00:20]} 1-0


[Site "https://www.chess.com"]

[Event "Titled Tuesday Blitz April 18 Late 2023"]
[White "Sabuk, Piotr"]
[Black "Dubreuil, Julien"]
[WhiteFideId "1137565"]
[BlackFideId "621285"]
[WhiteElo "2298"]
[BlackElo "2209"]
[Result "1-0"]
[Round "04"]
[TimeControl "180+2"]
[Date "2023.04.18"]
[WhiteClock "0:00:04"]
[BlackClock "0:00:01"]

1. d4 {[%clk 0:03:00]}  d5 {[%clk 0:02:59]} 2. c4 {[%clk 0:03:00]}  c6 {[%clk 0:02:57]} 3. Nf3 {[%clk 0:03:00]}  Nf6 {[%clk 0:02:57]} 4. Nc3 {[%clk 0:02:59]}  dxc4 {[%clk 0:02:57]} 5. a4 {[%clk 0:02:54]}  e6 {[%clk 0:02:57]} 6. e3 {[%clk 0:02:46]}  c5 {[%clk 0:02:56]} 7. Bxc4 {[%clk 0:02:46]}  Nc6 {[%clk 0:02:56]} 8. O-O {[%clk 0:02:45]}  Be7 {[%clk 0:02:56]} 9. Qe2 {[%clk 0:02:20]}  cxd4 {[%clk 0:02:56]} 10. Rd1 {[%clk 0:02:20]}  e5 {[%clk 0:02:56]} 11. exd4 {[%clk 0:02:12]}  exd4 {[%clk 0:02:55]} 12. Nxd4 {[%clk 0:02:06]}  Nxd4 {[%clk 0:02:55]} 13. Qe5 {[%clk 0:01:59]}  Qd6 {[%clk 0:02:54]} 14. Qxd4 {[%clk 0:01:44]}  Qxd4 {[%clk 0:02:53]} 15. Rxd4 {[%clk 0:01:45]}  O-O {[%clk 0:02:53]} 16. Bf4 {[%clk 0:01:37]}  Be6 {[%clk 0:02:48]} 17. Bxe6 {[%clk 0:01:36]}  fxe6 {[%clk 0:02:49]} 18. Re1 {[%clk 0:01:31]}  Kf7 {[%clk 0:02:49]} 19. Rd2 {[%clk 0:01:19]}  Rac8 {[%clk 0:02:40]} 20. Rde2 {[%clk 0:01:17]}  Rc6 {[%clk 0:02:40]} 21. Nb5 {[%clk 0:01:03]}  Nd5 {[%clk 0:02:16]} 22. Bd2 {[%clk 0:00:59]}  Bf6 {[%clk 0:02:06]} 23. Nxa7 {[%clk 0:00:54]}  Ra6 {[%clk 0:01:50]} 24. Nb5 {[%clk 0:00:54]}  Rxa4 {[%clk 0:01:45]} 25. Nd6+ {[%clk 0:00:53]}  Kg6 {[%clk 0:01:43]} 26. Nxb7 {[%clk 0:00:45]}  Ra2 {[%clk 0:01:30]} 27. b3 {[%clk 0:00:40]}  Rc8 {[%clk 0:01:07]} 28. Kf1 {[%clk 0:00:11]}  Rcc2 {[%clk 0:00:58]} 29. Ba5 {[%clk 0:00:10]}  Nf4 {[%clk 0:00:49]} 30. Rxc2 {[%clk 0:00:10]}  Rxc2 {[%clk 0:00:50]} 31. g3 {[%clk 0:00:10]}  Bd4 {[%clk 0:00:48]} 32. gxf4 {[%clk 0:00:06]}  Rxf2+ {[%clk 0:00:46]} 33. Kg1 {[%clk 0:00:07]}  e5 {[%clk 0:00:19]} 34. fxe5 {[%clk 0:00:06]}  Rf7+ {[%clk 0:00:19]} 35. Kg2 {[%clk 0:00:07]}  Rxb7 {[%clk 0:00:19]} 36. e6 {[%clk 0:00:07]}  Bf6 {[%clk 0:00:18]} 37. b4 {[%clk 0:00:07]}  Be7 {[%clk 0:00:18]} 38. Re4 {[%clk 0:00:06]}  Kf5 {[%clk 0:00:17]} 39. Kf3 {[%clk 0:00:06]}  g5 {[%clk 0:00:16]} 40. h3 {[%clk 0:00:06]}  h5 {[%clk 0:00:16]} 41. Rc4 {[%clk 0:00:05]}  g4+ {[%clk 0:00:17]} 42. hxg4+ {[%clk 0:00:05]}  hxg4+ {[%clk 0:00:18]} 43. Rxg4 {[%clk 0:00:05]}  Kxe6 {[%clk 0:00:18]} 44. Re4+ {[%clk 0:00:05]}  Kd7 {[%clk 0:00:17]} 45. Ke3 {[%clk 0:00:05]}  Bd6 {[%clk 0:00:17]} 46. Kd3 {[%clk 0:00:05]}  Kc6 {[%clk 0:00:17]} 47. Kc4 {[%clk 0:00:06]}  Rf7 {[%clk 0:00:16]} 48. Re6 {[%clk 0:00:05]}  Rf4+ {[%clk 0:00:15]} 49. Kb3 {[%clk 0:00:06]}  Kd5 {[%clk 0:00:16]} 50. Rg6 {[%clk 0:00:04]}  Bxb4 {[%clk 0:00:15]} 51. Bxb4 {[%clk 0:00:04]}  Rf3+ {[%clk 0:00:15]} 52. Bc3 {[%clk 0:00:05]}  Rh3 {[%clk 0:00:15]} 53. Rg5+ {[%clk 0:00:05]}  Ke4 {[%clk 0:00:14]} 54. Kc4 {[%clk 0:00:05]}  Rh1 {[%clk 0:00:13]} 55. Re5+ {[%clk 0:00:05]}  Kf4 {[%clk 0:00:13]} 56. Re7 {[%clk 0:00:05]}  Rh6 {[%clk 0:00:08]} 57. Kd3 {[%clk 0:00:04]}  Rh3+ {[%clk 0:00:07]} 58. Kc4 {[%clk 0:00:03]}  Rh1 {[%clk 0:00:07]} 59. Kd5 {[%clk 0:00:03]}  Rd1+ {[%clk 0:00:06]} 60. Bd4 {[%clk 0:00:03]}  Rd3 {[%clk 0:00:04]} 61. Rf7+ {[%clk 0:00:04]}  Kg5 {[%clk 0:00:04]} 62. Ke4 {[%clk 0:00:04]}  Rd1 {[%clk 0:00:04]} 63. Rf8 {[%clk 0:00:04]}  Kg6 {[%clk 0:00:04]} 64. Rf2 {[%clk 0:00:03]}  Rb1 {[%clk 0:00:03]} 65. Ke5 {[%clk 0:00:03]}  Rb5+ {[%clk 0:00:01]} 66. Ke4 {[%clk 0:00:03]}  Rb4 {[%clk 0:00:01]} 67. Rg2+ {[%clk 0:00:04]}  Kf7 {[%clk 0:00:01]} 68. Ke5 {[%clk 0:00:04]}  Rb7 {[%clk 0:00:02]} 69. Bc5 {[%clk 0:00:04]}  Ke8 {[%clk 0:00:02]} 70. Ke6 {[%clk 0:00:04]}  Re7+ {[%clk 0:00:01]} 71. Kd6 {[%clk 0:00:03]}  Rd7+ {[%clk 0:00:01]} 72. Kc6 {[%clk 0:00:04]} 1-0


[Site "https://www.chess.com"]